bitfinex/quotes_SOLUSD_20250209
["timestamp","ask_amount","ask_price","bid_price","bid_amount"]
[1739084652546,42.55906151,204.86,204.85,0.063]
[1739084667240,0.03,204.88,204.85,0.063]
[1739084667241,3.4467,204.88,204.85,0.063]
[1739084667423,0.03,204.88,204.85,0.063]
[1739084667825,20.0,204.86,204.85,0.063]
[1739084670453,20.25098,204.86,204.85,0.063]
[1739084670651,25.73031298,204.86,204.85,0.063]
[1739084670957,42.55906151,204.86,204.85,0.063]
[1739084676965,0.03,204.88,204.85,0.063]
[1739084681652,0.03,204.88,204.86,5.47933298]
[1739084682240,0.03,204.88,204.85,1.6012]
[1739084693276,83.0,204.87,204.85,1.6012]
[1739084699278,0.03,204.88,204.85,1.6012]
[1739084699279,83.0,204.86,204.85,1.6012]
[1739084699480,83.0,204.86,204.85,0.063]
[1739084700791,92.14721298,204.86,204.85,0.063]
[1739084700986,22.55906151,204.86,204.85,0.063]
[1739084703489,17.07972853,204.86,204.85,0.063]
[1739084706686,22.55906151,204.86,204.85,0.063]
[1739084711770,17.07972853,204.86,204.85,0.063]
[1739084716599,22.55906151,204.86,204.85,0.063]
[1739084727817,23.55906151,204.86,204.85,0.063]
[1739084728011,30.16626151,204.86,204.85,0.063]
[1739084729105,29.16626151,204.86,204.85,0.063]
[1739084733423,30.16626151,204.86,204.85,0.063]
[1739084738015,0.25098,204.81,204.77,0.063]
[1739084738216,19.14216151,204.78,204.77,0.063]
[1739084739920,22.56046151,204.78,204.77,0.063]
[1739084741615,13.66282853,204.77,204.76,0.063]
[1739084741921,105.56056151,204.77,204.76,0.063]
[1739084743612,102.14216151,204.77,204.76,0.063]
[1739084743817,96.66282853,204.77,204.76,0.063]
[1739084744217,102.14216151,204.77,204.76,0.063]
[1739084745011,96.66282853,204.77,204.76,0.063]
[1739084745211,5.47933298,204.8,204.76,0.063]
[1739084745827,20.0,204.77,204.76,0.063]
[1739084749524,25.47933298,204.77,204.76,0.063]
[1739084752847,39.14216151,204.77,204.76,0.063]
[1739084753037,42.56056151,204.77,204.76,0.063]
[1739084756443,13.66282853,204.76,204.66,1.5861]
[1739084756626,19.14216151,204.75,204.66,1.5861]
[1739084756823,22.56096151,204.75,204.66,1.5861]
[1739084758321,28.11329319,204.75,204.66,1.5861]
[1739084759047,20.25098,204.67,204.66,1.5861]
[1739084759250,13.66282853,204.66,204.64,0.063]
[1739084759446,25.73031298,204.67,204.64,0.063]
[1739084759447,5.73031298,204.65,204.64,0.063]
[1739084759756,19.14216151,204.65,204.64,0.063]
[1739084760744,25.04115986,204.65,204.64,0.063]
[1739084760943,20.0,204.62,204.55,0.063]
[1739084761145,5.73031298,204.56,204.55,0.063]
[1739084761449,19.14216151,204.56,204.55,0.063]
[1739084763148,22.56406151,204.56,204.55,0.063]
[1739084764152,23.56406151,204.56,204.55,0.063]
[1739084764361,13.41184853,204.51,204.43,1.6016]
[1739084764561,5.47933298,204.45,204.43,1.6016]
[1739084766752,5.47933298,204.44,204.43,1.6016]
[1739084767860,5.47933298,204.45,204.43,1.6016]
[1739084768054,5.47933298,204.45,204.38,5.47933298]
[1739084768266,0.25098,204.48,204.43,0.063]
[1739084768632,5.47933298,204.47,204.43,0.063]
[1739084771464,5.73031298,204.48,204.43,0.063]
[1739084771864,83.0,204.5,204.45,5.47933298]
[1739084772045,83.0,204.5,204.47,5.47933298]
[1739084773367,83.0,204.5,204.49,5.47933298]
[1739084773549,30.17339522,204.52,204.49,5.47933298]
[1739084773737,30.17339522,204.52,204.5,5.47933298]
[1739084773937,83.0,204.54,204.5,8.90223298]
[1739084774157,83.0,204.54,204.51,5.47933298]
[1739084775837,83.0,204.54,204.5,8.90223298]
[1739084779483,83.0,204.54,204.5,5.47933298]
[1739084779983,83.0,204.54,204.51,5.47933298]
[1739084780977,0.25098,204.51,204.44,5.47933298]
[1739084781188,5.47933298,204.49,204.42,5.47933298]
[1739084781381,5.47933298,204.49,204.42,8.90343298]
[1739084781699,5.47933298,204.49,204.42,5.47933298]
[1739084781901,0.25098,204.49,204.43,3.487]
[1739084782074,0.25098,204.49,204.43,8.96633298]
[1739084782578,8.61612492,204.51,204.44,8.61612492]
[1739084782779,8.61612492,204.52,204.44,8.61612492]
[1739084783105,83.0,204.53,204.47,8.61612492]
[1739084783478,0.03,204.54,204.48,8.61612492]
[1739084783883,0.25098,204.53,204.46,8.61612492]
[1739084784087,8.61612492,204.52,204.45,12.03992492]
[1739084785492,0.25098,204.53,204.47,8.61612492]
[1739084788402,83.0,204.53,204.48,8.61612492]
[1739084788614,83.0,204.53,204.49,8.61612492]
[1739084792110,1.0,204.52,204.48,8.61612492]
[1739084794610,1.0,204.52,204.5,8.61612492]
[1739084794812,1.0,204.52,204.51,8.61612492]
[1739084795698,83.0,204.53,204.51,8.61612492]
[1739084795904,83.0,204.53,204.52,8.61612492]
[1739084797202,83.0,204.53,204.52,12.03872492]
[1739084797712,0.03,204.54,204.52,12.03872492]
[1739084797914,0.03,204.54,204.53,8.61612492]
[1739084801420,0.03,204.54,204.53,15.65852492]
[1739084801625,0.03,204.64,204.56,20.0]
[1739084801827,1.0,204.63,204.58,8.61612492]
[1739084802129,1.0,204.6,204.54,8.61612492]
[1739084802297,1.0,204.58,204.53,3.62]
[1739084803700,1.0,204.58,204.53,12.23612492]
[1739084803900,1.0,204.58,204.54,8.61612492]
[1739084804607,1.0,204.58,204.54,5.50869479]
[1739084805223,1.03,204.58,204.54,5.50869479]
[1739084805731,1.03,204.58,204.54,8.93089479]
[1739084807744,1.03,204.58,204.55,5.50869479]
[1739084811236,0.03,204.58,204.56,5.50869479]
[1739084814957,0.03,204.58,204.57,5.50869479]
[1739084819759,0.03,204.58,204.56,5.50869479]
[1739084820055,1.03,204.58,204.55,5.50869479]
[1739084820249,1.0,204.56,204.53,9.12869479]
[1739084820450,1.0,204.56,204.53,3.62]
[1739084821357,1.0,204.56,204.52,3.4226]
[1739084821525,1.03,204.58,204.55,5.50869479]
[1739084822656,1.03,204.58,204.54,5.50869479]
[1739084824233,7.11109479,204.61,204.51,3.4228]
[1739084824234,7.61986948,204.63,204.57,5.50869479]
[1739084824556,7.61986948,204.63,204.62,5.50869479]
[1739084824759,15.00921771,204.63,204.62,5.50869479]
[1739084825337,15.00921771,204.63,204.62,8.92959479]
[1739084826736,0.03,204.64,204.62,12.01766813]
[1739084827055,0.03,204.64,204.63,12.382827]
[1739084827446,0.03,204.64,204.63,12.01756813]
[1739084828155,0.03,204.64,204.63,8.59676813]
[1739084829573,0.03,204.64,204.62,8.59676813]
[1739084833563,0.03,204.64,204.61,8.59676813]
[1739084834542,1.0,204.63,204.59,8.59676813]
[1739084834743,1.0,204.63,204.57,12.01846813]
[1739084834955,1.0,204.63,204.52,1.96339671]
[1739084834956,9.59676813,204.63,204.56,8.59676813]
[1739084835155,1.0,204.6,204.56,8.59676813]
[1739084835461,1.0,204.6,204.57,8.59676813]
[1739084835650,1.0,204.62,204.58,8.59676813]
[1739084836452,1.03,204.64,204.61,8.59676813]
[1739084836657,0.03,204.64,204.62,8.59676813]
[1739084837176,1.0,204.63,204.59,8.59676813]
[1739084837468,1.0,204.6,204.57,8.59676813]
[1739084837765,1.0,204.6,204.56,12.01866813]
[1739084838161,1.0,204.57,204.52,8.59676813]
[1739084838368,1.0,204.57,204.51,12.01956813]
[1739084838966,8.59676813,204.58,204.51,3.4228]
[1739084838967,1.0,204.55,204.51,3.4228]
[1739084840465,1.0,204.55,204.51,8.59676813]
[1739084841659,1.0,204.57,204.52,12.01936813]
[1739084841861,1.0,204.57,204.53,8.59676813]
[1739084846671,1.0,204.57,204.55,8.59676813]
[1739084846854,84.0,204.59,204.56,8.59676813]
[1739084847970,83.0,204.59,204.57,8.59676813]
[1739084848174,1.0,204.61,204.57,8.59676813]
[1739084853086,1.0,204.61,204.56,8.59676813]
[1739084853386,1.0,204.58,204.53,8.59676813]
[1739084853582,1.0,204.58,204.57,0.063]
[1739084862696,1.0,204.6,204.57,0.063]
[1739084870000,1.0,204.6,204.58,5.50842203]
[1739084870183,0.03,204.61,204.59,5.50842203]
[1739084871876,0.03,204.61,204.58,5.50842203]
[1739084877518,0.03,204.61,204.59,5.50842203]
[1739084878021,0.03,204.61,204.58,5.50842203]
[1739084878494,1.0,204.59,204.57,0.063]
[1739084882126,1.03,204.61,204.57,0.063]
[1739084886522,4.4511,204.61,204.57,0.063]
[1739084886928,1.0,204.58,204.57,0.063]
[1739084887822,1.25098,204.58,204.57,0.063]
[1739084889236,6.75940203,204.58,204.57,0.063]
[1739084890335,10.18100203,204.58,204.57,0.063]
[1739084890538,23.59285056,204.58,204.57,0.063]
[1739084893134,31.24031405,204.58,204.57,0.063]
[1739084894739,8.64746349,204.58,204.57,0.063]
[1739084896141,1.0,204.58,204.57,0.063]
[1739084897550,1.25098,204.58,204.57,0.063]
[1739084897731,10.18100203,204.58,204.57,0.063]
[1739084898121,17.82846552,204.58,204.57,0.063]
[1739084902029,8.64746349,204.58,204.57,0.063]
[1739084902934,1.0,204.58,204.57,0.063]
[1739084908955,4.4216,204.58,204.57,0.063]
[1739084909552,1.0,204.58,204.57,0.063]
[1739084916159,1.03,204.58,204.57,0.063]
[1739084925580,10.21100203,204.58,204.57,0.063]
[1739084925749,23.62285056,204.58,204.57,0.063]
[1739084926564,106.62285056,204.58,204.57,0.063]
[1739084927367,114.27031405,204.58,204.57,0.063]
[1739084929489,125.02161604,204.58,204.57,0.063]
[1739084929693,5.50842203,204.55,204.48,8.93162203]
[1739084930077,1.0,204.52,204.48,8.93162203]
[1739084930582,1.0,204.52,204.48,5.50842203]
[1739084930779,1.0,204.52,204.47,10.58152203]
[1739084931588,1.0,204.52,204.5,5.50842203]
[1739084931782,1.0,204.54,204.51,5.50842203]
[1739084932706,1.0,204.54,204.51,8.93112203]
[1739084933784,1.0,204.54,204.5,8.93132203]
[1739084935878,1.0,204.54,204.5,3.4229]
[1739084936088,1.0,204.54,204.49,8.93152203]
[1739084936484,1.0,204.54,204.48,5.50842203]
[1739084936687,1.0,204.52,204.45,8.93202203]
[1739084936872,5.50842203,204.53,204.45,8.93202203]
[1739084936873,1.0,204.5,204.45,8.93202203]
[1739084937995,1.0,204.5,204.46,5.50842203]
[1739084939998,1.0,204.5,204.46,5.57142203]
[1739084940396,1.0,204.5,204.46,0.063]
[1739084941099,1.0,204.5,204.46,5.57142203]
[1739084943906,1.0,204.5,204.46,8.99502203]
[1739084944402,1.0,204.5,204.46,5.57142203]
[1739084944584,1.0,204.48,204.46,5.57142203]
[1739084947909,5.48928509,204.52,204.46,5.57142203]
[1739084948094,8.91198509,204.52,204.46,5.57142203]
[1739084949202,20.0,204.5,204.46,5.57142203]
[1739084950316,0.12549,204.5,204.46,0.063]
[1739084950485,6.55099039,204.5,204.46,0.063]
[1739084950687,5.50842203,204.49,204.46,0.063]
[1739084950889,0.12549,204.48,204.46,0.063]
[1739084951218,5.75940203,204.48,204.46,0.063]
[1739084952231,0.25098,204.48,204.46,0.063]
[1739084953035,1.6139,204.5,204.46,5.57142203]
[1739084953219,1.6139,204.5,204.47,5.50842203]
[1739084953531,6.0054,204.52,204.48,5.50842203]
[1739084957035,6.0054,204.52,204.48,8.93172203]
[1739084958037,6.0054,204.52,204.47,5.50842203]
[1739084958931,6.0054,204.52,204.46,5.57142203]
[1739084959530,6.0054,204.52,204.47,3.4234]
[1739084962415,0.12549,204.51,204.46,5.57142203]
[1739084962732,0.25098,204.51,204.46,5.57142203]
[1739084969451,6.0354,204.52,204.46,8.99502203]
[1739084969620,6.0354,204.52,204.48,5.50842203]
[1739084969820,0.03,204.52,204.48,5.50842203]
[1739084971044,0.03,204.52,204.49,5.50842203]
[1739084971952,0.03,204.52,204.51,5.50842203]
[1739084973543,0.03,204.52,204.49,5.50842203]
[1739084973750,0.03,204.52,204.48,5.50842203]
[1739084975056,0.03,204.52,204.49,5.50842203]
[1739084975259,0.03,204.52,204.5,5.50842203]
[1739084979355,0.03,204.52,204.49,5.57142203]
[1739084983943,0.03,204.52,204.5,5.50842203]
[1739084989759,0.03,204.52,204.49,0.063]
[1739085001350,0.03,204.52,204.5,5.50842203]
[1739085002672,0.03,204.52,204.51,3.4228]
[1739085003376,0.03,204.52,204.49,3.486]
[1739085006974,0.03,204.52,204.49,0.063]
[1739085013195,5.50842203,204.5,204.49,0.063]
[1739085013372,5.63391203,204.5,204.49,0.063]
[1739085019610,6.3265,204.51,204.49,0.063]
[1739085019788,7.71896258,204.52,204.49,0.063]
[1739085020188,7.71896258,204.52,204.49,5.57142203]
[1739085020404,7.71896258,204.52,204.5,5.50842203]
[1739085021612,0.03,204.52,204.5,8.93122203]
[1739085022808,0.03,204.52,204.49,5.57142203]
[1739085023011,0.03,204.52,204.49,3.4861]
[1739085024097,0.03,204.52,204.49,8.99452203]
[1739085025613,0.03,204.52,204.51,5.50842203]
[1739085025800,0.03,204.52,204.5,5.50842203]
[1739085027718,0.03,204.52,204.51,3.4228]
[1739085028424,0.03,204.52,204.51,8.93122203]
[1739085035500,0.03,204.52,204.51,12.53122203]
[1739085036929,0.03,204.52,204.51,233.33122203]
[1739085037239,0.03,204.57,204.54,20.0]
[1739085037528,0.03,204.57,204.56,5.50842203]
[1739085037901,0.03,204.57,204.56,8.3799242]
[1739085038101,0.03,204.57,204.56,7.3799242]
[1739085039540,0.03,204.57,204.56,20.79177273]
[1739085039723,0.03,204.57,204.56,244.26465273]
[1739085039916,0.03,204.57,204.56,243.89885056]
[1739085040831,0.03,204.57,204.56,242.64787056]
[1739085041134,0.03,204.57,204.56,227.73032203]
[1739085041339,0.03,204.57,204.56,91.93032203]
[1739085042310,0.03,204.57,204.56,9.29638794]
[1739085043127,0.03,204.57,204.56,3.4219]
[1739085043333,0.03,204.57,204.53,141.30842203]
[1739085043537,0.03,204.57,204.53,139.2223]
[1739085045027,0.03,204.57,204.54,5.50842203]
[1739085045549,0.03,204.57,204.55,5.50842203]
[1739085046436,0.03,204.57,204.56,5.50842203]
[1739085047046,0.03,204.57,204.56,8.93032203]
[1739085048046,0.03,204.57,204.55,5.50842203]
[1739085048252,0.03,204.57,204.51,8.93122203]
[1739085050432,5.53842203,204.57,204.51,3.4228]
[1739085050831,0.03,204.57,204.51,3.4228]
[1739085052448,0.03,204.57,204.51,8.93122203]
[1739085052752,0.03,204.57,204.53,5.50842203]
[1739085052930,0.03,204.57,204.56,5.50842203]
[1739085055434,0.03,204.57,204.56,8.93032203]
[1739085058760,0.03,204.57,204.56,144.73032203]
[1739085060857,0.03,204.57,204.56,227.73032203]
[1739085061239,0.03,204.57,204.56,242.39315056]
[1739085061648,0.03,204.57,204.56,243.39315056]
[1739085065085,0.03,204.57,204.56,242.39315056]
[1739085066368,0.03,204.58,204.57,19.04576056]
[1739085066572,0.03,204.58,204.57,19.41138532]
[1739085067679,0.03,204.58,204.57,22.83318532]
[1739085068582,0.03,204.58,204.57,23.83318532]
[1739085069772,0.03,204.58,204.57,242.75867532]
[1739085069978,0.03,204.58,204.57,242.39305056]
[1739085071982,0.03,204.58,204.57,241.39305056]
[1739085072187,0.03,204.58,204.57,242.39305056]
[1739085076278,0.0001,204.58,204.57,242.39305056]
[1739085076589,0.0001,204.58,204.57,243.60148584]
[1739085077391,1e-08,204.59,204.58,1.0]
[1739085077561,1e-08,204.59,204.58,228.09534602]
[1739085077767,1e-08,204.59,204.58,222.2216]
[1739085079473,1e-08,204.59,204.58,227.73002203]
[1739085080603,1e-08,204.59,204.58,242.26736056]
[1739085081197,1e-08,204.59,204.58,24.59285056]
[1739085081380,1e-08,204.59,204.58,24.95817715]
[1739085081582,0.03,204.64,204.61,21.0]
[1739085081781,0.03,204.64,204.63,5.50842203]
[1739085083395,0.03,204.64,204.63,8.92922203]
[1739085085203,0.03,204.64,204.63,241.39205056]
[1739085085383,0.03,204.64,204.63,242.39205056]
[1739085086093,0.03,204.64,204.63,242.14107056]
[1739085087998,0.03,204.64,204.63,242.39205056]
[1739085088177,0.03,204.64,204.63,243.39205056]
[1739085090614,0.03,204.64,204.63,242.39205056]
[1739085092912,0.0001,204.64,204.63,242.39205056]
[1739085095330,0.0001,204.64,204.63,242.45505056]
[1739085100033,0.03,204.73,204.68,2.0]
[1739085100228,0.03,204.73,204.69,3.96464247]
[1739085100440,0.03,204.73,204.71,5.50842203]
[1739085100907,0.03,204.73,204.72,5.87306113]
[1739085101524,0.03,204.73,204.72,224.67306113]
[1739085101710,0.03,204.73,204.72,224.30842203]
[1739085102127,0.03,204.73,204.72,237.72027056]
[1739085102435,0.03,204.73,204.72,242.13957056]
[1739085105835,0.03,204.73,204.72,242.39055056]
[1739085106629,0.03,204.73,204.72,241.39055056]
[1739085106835,0.03,204.73,204.72,242.39055056]
[1739085110647,7.8961,204.84,204.77,1.25098]
[1739085110934,0.03,204.84,204.83,5.50842203]
[1739085111140,0.03,204.84,204.83,224.67178953]
[1739085111437,0.03,204.84,204.83,218.8]
[1739085113730,0.03,204.84,204.83,222.2174]
[1739085114744,0.03,204.84,204.83,218.8]
[1739085116147,0.03,204.84,204.83,224.30842203]
[1739085116327,0.03,204.84,204.83,227.72582203]
[1739085116642,0.03,204.84,204.83,242.13767056]
[1739085117546,0.03,204.84,204.83,227.72582203]
[1739085123226,0.03,204.84,204.83,241.13767056]
[1739085123433,0.03,204.84,204.83,242.13767056]
[1739085123926,0.03,204.84,204.83,242.38865056]
[1739085124132,0.03,204.88,204.87,21.25098]
[1739085124442,0.03,204.88,204.87,40.53405336]
[1739085125230,0.03,204.88,204.87,28.92522203]
[1739085126563,0.03,204.88,204.87,43.58805056]
[1739085126767,0.0001,204.88,204.87,262.38805056]
[1739085126946,7.6625,204.99,204.91,20.25098]
[1739085127137,7.6625,204.99,204.96,5.50842203]
[1739085127332,7.6625,204.99,204.96,224.30842203]
[1739085127860,7.6625,204.99,204.96,218.8]
[1739085128663,7.6625,204.99,204.96,222.2152]
[1739085129973,7.6625,204.99,204.96,227.72362203]
[1739085130931,0.03,204.99,204.98,5.50842203]
[1739085132167,0.03,204.99,204.98,8.92332203]
[1739085135964,0.03,204.99,204.98,227.72332203]
[1739085138176,0.03,204.99,204.98,218.8]
[1739085138969,0.03,204.99,204.98,222.2149]
[1739085140274,0.03,204.99,204.98,227.72332203]
[1739085140877,0.03,204.99,204.98,241.13517056]
[1739085141460,0.03,204.99,204.98,241.38615056]
[1739085141660,0.03,204.99,204.98,242.38615056]
[1739085145759,0.03,204.99,204.98,241.13517056]
[1739085146088,0.03,204.99,204.98,218.8]
[1739085147769,0.03,204.99,204.98,222.2149]
[1739085150999,5.53842203,204.99,204.98,218.8]
[1739085152786,5.53842203,204.99,204.98,83.0]
[1739085153087,8.95322203,204.99,204.94,83.0]
[1739085153263,5.50842203,204.95,204.94,83.0]
[1739085157199,5.50842203,204.96,204.94,83.0]
[1739085158293,13.27002203,204.95,204.92,134.1334]
[1739085158480,13.27002203,204.95,204.84,13.41184853]
[1739085158481,6.68898,204.88,204.78,3.4181]
[1739085158681,5.50842203,204.83,204.78,134.1334]
[1739085160185,5.50842203,204.86,204.78,143.05992203]
[1739085161488,5.50842203,204.86,204.78,139.64182203]
[1739085162400,5.50842203,204.84,204.78,134.1334]
[1739085162598,8.58780424,204.83,204.78,134.1334]
[1739085163299,8.58780424,204.84,204.78,134.1334]
[1739085163489,8.58780424,204.85,204.78,134.1334]
[1739085164005,8.58780424,204.84,204.78,134.1334]
[1739085165892,8.58780424,204.83,204.78,134.1334]
[1739085166083,8.83878424,204.83,204.78,134.1334]
[1739085166499,9.75440777,204.83,204.78,74.6668]
[1739085166797,36.51409945,204.83,204.78,74.6668]
[1739085167896,39.93149945,204.83,204.78,74.6668]
[1739085169398,39.93149945,204.83,204.74,74.6668]
[1739085169703,20.25098,204.79,204.74,74.6668]
[1739085169902,8.58780424,204.75,204.74,74.6668]
[1739085173010,8.58780424,204.76,204.74,74.6668]
[1739085173313,8.58780424,204.8,204.74,78.0857]
[1739085174285,8.58780424,204.83,204.76,8.58780424]
[1739085174503,8.58780424,204.84,204.77,8.58780424]
[1739085174712,8.58780424,204.84,204.77,217.38800424]
[1739085176310,8.58780424,204.83,204.78,3.4183]
[1739085178811,8.58780424,204.85,204.78,12.00610424]
[1739085179118,8.58780424,204.88,204.81,8.58780424]
[1739085180098,8.58780424,204.86,204.81,3.4178]
[1739085181022,8.58780424,204.87,204.81,3.4178]
[1739085181317,8.58780424,204.87,204.81,212.218]
[1739085182225,8.58780424,204.86,204.81,212.218]
[1739085182424,8.58780424,204.84,204.81,208.8002]
[1739085183504,8.58780424,204.82,204.81,74.6668]
[1739085189938,8.58780424,204.82,204.81,74.7298]
[1739085190521,12.00540424,204.82,204.81,74.7298]
[1739085190738,9.16748599,204.82,204.81,0.063]
[1739085191031,44.57495848,204.82,204.81,0.063]
[1739085191212,22.57933452,204.82,204.81,0.063]
[1739085192641,25.67353992,204.82,204.81,0.063]
[1739085194239,12.26169139,204.82,204.81,0.063]
[1739085194537,20.85480278,204.82,204.81,0.063]
[1739085194832,20.0,204.79,204.77,74.6668]
[1739085195035,8.59311139,204.78,204.77,74.6668]
[1739085196335,8.59311139,204.8,204.77,74.6668]
[1739085196831,8.59311139,204.79,204.77,74.6668]
[1739085197821,8.59311139,204.78,204.77,74.6668]
[1739085198946,0.25098,204.77,204.73,74.6668]
[1739085199122,8.59311139,204.74,204.73,74.6668]
[1739085200225,8.59311139,204.74,204.69,208.8002]
[1739085200443,8.59311139,204.73,204.69,208.8002]
[1739085200644,8.59311139,204.72,204.69,208.8002]
[1739085201646,8.59311139,204.71,204.69,208.8002]
[1739085201866,8.59311139,204.7,204.69,74.6668]
[1739085202446,8.59311139,204.7,204.69,74.7298]
[1739085203031,17.43720278,204.7,204.69,0.063]
[1739085203242,30.84905131,204.7,204.69,0.063]
[1739085203658,34.26865131,204.7,204.69,0.063]
[1739085204634,17.43720278,204.7,204.69,0.063]
[1739085204839,8.59311139,204.7,204.69,0.063]
[1739085205146,8.59311139,204.7,204.64,208.8632]
[1739085205338,8.59311139,204.69,204.64,208.8632]
[1739085205739,8.59311139,204.7,204.65,3.4204]
[1739085205949,8.59311139,204.71,204.65,4.9803]
[1739085206151,8.59311139,204.73,204.66,8.59311139]
[1739085206352,8.59311139,204.74,204.67,8.59311139]
[1739085206547,8.59311139,204.76,204.69,8.59311139]
[1739085206852,7.68896258,204.77,204.7,8.59311139]
[1739085206853,16.28207397,204.77,204.7,8.59311139]
[1739085207053,16.28207397,204.77,204.71,8.59311139]
[1739085207365,7.68896258,204.77,204.72,8.59311139]
[1739085207858,7.68896258,204.77,204.73,3.4191]
[1739085208546,8.59311139,204.79,204.73,3.4191]
[1739085208736,8.59311139,204.78,204.73,3.4191]
[1739085211055,8.59311139,204.77,204.71,208.8002]
[1739085211253,0.03,204.81,204.71,208.8002]
[1739085211254,8.59311139,204.75,204.71,212.2195]
[1739085211454,8.59311139,204.76,204.71,212.2195]
[1739085212955,8.59311139,204.75,204.71,212.2195]
[1739085213463,8.59311139,204.74,204.71,212.2195]
[1739085214039,8.59311139,204.72,204.71,74.6668]
[1739085216065,8.59311139,204.73,204.71,74.6668]
[1739085216366,8.59311139,204.75,204.71,78.0862]
[1739085216552,8.59311139,204.76,204.71,78.0862]
[1739085218265,8.59311139,204.75,204.71,78.0862]
[1739085218452,8.59311139,204.76,204.71,78.0862]
[1739085219068,8.59311139,204.76,204.71,212.2196]
[1739085222960,4.3635622,204.81,204.71,212.2196]
[1739085222961,8.59311139,204.75,204.71,212.2196]
[1739085223544,8.59311139,204.78,204.71,212.2196]
[1739085223866,8.59311139,204.77,204.71,212.2196]
[1739085224163,8.59311139,204.76,204.71,212.2196]
[1739085224750,8.59311139,204.75,204.71,212.2196]
[1739085225244,8.59311139,204.76,204.71,212.2196]
[1739085225659,8.59311139,204.77,204.71,212.2196]
[1739085226770,8.59311139,204.76,204.71,212.2196]
[1739085227547,8.62311139,204.76,204.71,212.2196]
[1739085228863,8.62311139,204.76,204.71,208.8002]
[1739085229065,8.59311139,204.74,204.71,208.8002]
[1739085230073,0.03,204.76,204.71,220.81271139]
[1739085230244,0.03,204.76,204.71,212.2196]
[1739085231067,8.59311139,204.74,204.71,208.8002]
[1739085234670,8.59311139,204.72,204.71,208.8002]
[1739085235468,8.59311139,204.72,204.71,74.6668]
[1739085237877,8.59311139,204.73,204.71,74.6668]
[1739085238979,8.59311139,204.72,204.71,74.6668]
[1739085241278,8.59311139,204.73,204.71,74.6668]
[1739085241582,8.59311139,204.75,204.71,78.0862]
[1739085241873,8.59311139,204.74,204.71,74.6668]
[1739085242056,8.59311139,204.73,204.71,74.6668]
[1739085242778,5.50254233,204.72,204.71,74.6668]
[1739085244478,5.50254233,204.73,204.71,74.6668]
[1739085246878,5.50254233,204.72,204.71,74.6668]
[1739085247078,13.66282853,204.71,204.67,0.063]
[1739085247277,5.50254233,204.68,204.67,0.063]
[1739085248577,5.50254233,204.69,204.67,0.063]
[1739085248780,5.50254233,204.7,204.67,0.063]
[1739085249082,5.50254233,204.71,204.67,0.063]
[1739085249275,7.68896258,204.71,204.67,0.063]
[1739085249475,5.50254233,204.69,204.67,0.063]
[1739085249673,5.50254233,204.68,204.67,0.063]
[1739085250675,5.50254233,204.69,204.67,0.063]
[1739085251785,5.50254233,204.69,204.67,208.8632]
[1739085252490,5.50254233,204.7,204.67,208.8632]
[1739085253592,5.50254233,204.69,204.67,208.8632]
[1739085253773,5.50254233,204.68,204.67,208.8632]
[1739085257716,5.50254233,204.68,204.67,74.7298]
[1739085260514,9.17342233,204.68,204.67,74.7298]
[1739085260717,22.58527086,204.68,204.67,0.063]
[1739085261718,22.33429086,204.68,204.64,74.7298]
[1739085261921,5.50254233,204.65,204.64,74.7298]
[1739085262517,5.50254233,204.66,204.64,74.7298]
[1739085262715,5.50254233,204.67,204.64,78.1504]
[1739085263018,5.50254233,204.68,204.64,78.1504]
[1739085263889,5.50254233,204.68,204.67,0.063]
[1739085264382,5.53254233,204.68,204.67,0.063]
[1739085265297,0.03,204.68,204.67,208.8632]